[Event "Titled Tuesday Blitz July 18 Early 2023"]
[White "Erzhanov, Arman"]
[Black "Okike, David"]
[WhiteFideId "4138821"]
[BlackFideId "8500134"]
[WhiteElo "2490"]
[BlackElo "2350"]
[Result "1/2-1/2"]
[Round "9"]
[TimeControl "180+2"]
[Date "2023.07.18"]
[WhiteClock "0:00:07"]
[BlackClock "0:00:21"]
[Board "100"]

1. e4 {[%clk 0:03:00]}  c5 {[%clk 0:02:59]} 2. Nf3 {[%clk 0:02:59]}  Nc6 {[%clk 0:02:59]} 3. Bb5 {[%clk 0:02:59]}  g6 {[%clk 0:02:58]} 4. O-O {[%clk 0:02:59]}  Bg7 {[%clk 0:02:57]} 5. c3 {[%clk 0:03:00]}  Nh6 {[%clk 0:02:56]} 6. d4 {[%clk 0:02:55]}  cxd4 {[%clk 0:02:56]} 7. cxd4 {[%clk 0:02:56]}  O-O {[%clk 0:02:54]} 8. d5 {[%clk 0:02:55]}  Nb8 {[%clk 0:02:54]} 9. h3 {[%clk 0:02:48]}  d6 {[%clk 0:02:51]} 10. Nc3 {[%clk 0:02:47]}  f5 {[%clk 0:02:48]} 11. Re1 {[%clk 0:02:25]}  Nd7 {[%clk 0:02:46]} 12. Bxd7 {[%clk 0:02:07]}  Bxd7 {[%clk 0:02:46]} 13. e5 {[%clk 0:02:08]}  Bc8 {[%clk 0:02:34]} 14. e6 {[%clk 0:02:07]}  Kh8 {[%clk 0:02:30]} 15. Bf4 {[%clk 0:01:57]}  Qb6 {[%clk 0:02:23]} 16. Qd2 {[%clk 0:01:55]}  Ng8 {[%clk 0:02:22]} 17. Ng5 {[%clk 0:01:55]}  h6 {[%clk 0:02:20]} 18. Nf7+ {[%clk 0:01:54]}  Kh7 {[%clk 0:02:21]} 19. h4 {[%clk 0:01:49]}  h5 {[%clk 0:02:19]} 20. Re3 {[%clk 0:01:46]}  Nf6 {[%clk 0:02:18]} 21. Rg3 {[%clk 0:01:43]}  Qc5 {[%clk 0:02:05]} 22. Rc1 {[%clk 0:01:40]}  Qb4 {[%clk 0:01:52]} 23. a3 {[%clk 0:01:36]}  Qa5 {[%clk 0:01:50]} 24. b4 {[%clk 0:01:34]}  Qb6 {[%clk 0:01:37]} 25. Be3 {[%clk 0:01:30]}  Qa6 {[%clk 0:01:37]} 26. a4 {[%clk 0:01:20]}  b6 {[%clk 0:01:35]} 27. b5 {[%clk 0:01:10]}  Qb7 {[%clk 0:01:30]} 28. Ng5+ {[%clk 0:00:59]}  Kg8 {[%clk 0:01:30]} 29. Nf7 {[%clk 0:01:00]}  Kh7 {[%clk 0:01:29]} 30. Rd1 {[%clk 0:00:55]}  Qc7 {[%clk 0:01:25]} 31. Qd3 {[%clk 0:00:54]}  Bb7 {[%clk 0:01:22]} 32. Rc1 {[%clk 0:00:51]}  Rac8 {[%clk 0:01:17]} 33. Ne2 {[%clk 0:00:47]}  Qb8 {[%clk 0:01:16]} 34. Rc6 {[%clk 0:00:42]}  Bxc6 {[%clk 0:01:14]} 35. bxc6 {[%clk 0:00:43]}  a6 {[%clk 0:01:06]} 36. Nd4 {[%clk 0:00:43]}  Ng4 {[%clk 0:01:04]} 37. f3 {[%clk 0:00:40]}  Ne5 {[%clk 0:01:02]} 38. Qc2 {[%clk 0:00:36]}  b5 {[%clk 0:00:51]} 39. Rxg6 {[%clk 0:00:35]}  Nxg6 {[%clk 0:00:41]} 40. Qxf5 {[%clk 0:00:36]}  Rxf7 {[%clk 0:00:41]} 41. exf7 {[%clk 0:00:28]}  Bxd4 {[%clk 0:00:41]} 42. Qxh5+ {[%clk 0:00:26]}  Kg7 {[%clk 0:00:40]} 43. Bxd4+ {[%clk 0:00:24]}  Ne5 {[%clk 0:00:40]} 44. f4 {[%clk 0:00:20]}  Rh8 {[%clk 0:00:39]} 45. Qg5+ {[%clk 0:00:18]}  Kxf7 {[%clk 0:00:39]} 46. fxe5 {[%clk 0:00:19]}  Qg8 {[%clk 0:00:35]} 47. Qf5+ {[%clk 0:00:18]}  Ke8 {[%clk 0:00:32]} 48. Qc8+ {[%clk 0:00:18]}  Kf7 {[%clk 0:00:32]} 49. Qf5+ {[%clk 0:00:14]}  Ke8 {[%clk 0:00:32]} 50. Qd7+ {[%clk 0:00:14]}  Kf7 {[%clk 0:00:31]} 51. e6+ {[%clk 0:00:14]}  Kg6 {[%clk 0:00:31]} 52. Bxh8 {[%clk 0:00:14]}  Qxh8 {[%clk 0:00:30]} 53. Qxe7 {[%clk 0:00:14]}  Qd4+ {[%clk 0:00:31]} 54. Kf1 {[%clk 0:00:13]}  Qf4+ {[%clk 0:00:29]} 55. Ke2 {[%clk 0:00:13]}  Qe4+ {[%clk 0:00:29]} 56. Kf2 {[%clk 0:00:13]}  Qf4+ {[%clk 0:00:29]} 57. Kg1 {[%clk 0:00:12]}  Qd4+ {[%clk 0:00:28]} 58. Kf1 {[%clk 0:00:12]}  Qf4+ {[%clk 0:00:28]} 59. Ke1 {[%clk 0:00:12]}  Qe3+ {[%clk 0:00:28]} 60. Kd1 {[%clk 0:00:12]}  Qd3+ {[%clk 0:00:27]} 61. Ke1 {[%clk 0:00:13]}  Qe3+ {[%clk 0:00:27]} 62. Kf1 {[%clk 0:00:14]}  Qd3+ {[%clk 0:00:26]} 63. Kf2 {[%clk 0:00:09]}  Qd4+ {[%clk 0:00:26]} 64. Kg3 {[%clk 0:00:08]}  Qe5+ {[%clk 0:00:26]} 65. Kh3 {[%clk 0:00:08]}  Qf5+ {[%clk 0:00:27]} 66. Kh2 {[%clk 0:00:06]}  Qf4+ {[%clk 0:00:27]} 67. g3 {[%clk 0:00:05]}  Qf2+ {[%clk 0:00:27]} 68. Kh3 {[%clk 0:00:05]}  Qf1+ {[%clk 0:00:27]} 69. Kh2 {[%clk 0:00:06]}  Qf2+ {[%clk 0:00:27]} 70. Kh3 {[%clk 0:00:06]}  Qf1+ {[%clk 0:00:26]} 71. Kh2 {[%clk 0:00:07]}  Qf2+ {[%clk 0:00:21]} 1/2-1/2


[Site "https://www.chess.com"]

[Event "Titled Tuesday Blitz July 18 Early 2023"]
[White "Taboas Rodriguez, Daniel"]
[Black "Da Silva Junior, Sediney Mari"]
[WhiteFideId "2208466"]
[BlackFideId "2132079"]
[WhiteElo "2490"]
[BlackElo "2224"]
[Result "1-0"]
[Round "9"]
[TimeControl "180+2"]
[Date "2023.07.18"]
[WhiteClock "0:01:18"]
[BlackClock "0:01:30"]
[Board "101"]

1. d4 {[%clk 0:03:00]}  Nf6 {[%clk 0:02:58]} 2. Nf3 {[%clk 0:03:01]}  e6 {[%clk 0:02:58]} 3. c4 {[%clk 0:03:01]}  d5 {[%clk 0:02:58]} 4. Nc3 {[%clk 0:03:01]}  Bb4 {[%clk 0:02:59]} 5. Bg5 {[%clk 0:03:01]}  O-O {[%clk 0:02:59]} 6. e3 {[%clk 0:03:02]}  h6 {[%clk 0:02:59]} 7. Bh4 {[%clk 0:03:01]}  b6 {[%clk 0:02:58]} 8. cxd5 {[%clk 0:03:00]}  exd5 {[%clk 0:02:57]} 9. Bd3 {[%clk 0:03:00]}  Bg4 {[%clk 0:02:57]} 10. O-O {[%clk 0:03:00]}  Nbd7 {[%clk 0:02:57]} 11. Nxd5 {[%clk 0:02:59]}  Be7 {[%clk 0:02:52]} 12. Nxe7+ {[%clk 0:02:56]}  Qxe7 {[%clk 0:02:52]} 13. h3 {[%clk 0:02:57]}  Bh5 {[%clk 0:02:52]} 14. Rc1 {[%clk 0:02:55]}  c5 {[%clk 0:02:51]} 15. Be2 {[%clk 0:02:54]}  Rad8 {[%clk 0:02:47]} 16. Qa4 {[%clk 0:02:49]}  cxd4 {[%clk 0:02:46]} 17. Nxd4 {[%clk 0:02:48]}  Bxe2 {[%clk 0:02:46]} 18. Nxe2 {[%clk 0:02:49]}  Nc5 {[%clk 0:02:46]} 19. Qa3 {[%clk 0:02:37]}  Rd7 {[%clk 0:02:34]} 20. Nd4 {[%clk 0:02:37]}  Qe5 {[%clk 0:02:25]} 21. Bg3 {[%clk 0:02:23]}  Qh5 {[%clk 0:02:14]} 22. Nf3 {[%clk 0:02:15]}  Nfe4 {[%clk 0:02:14]} 23. Bf4 {[%clk 0:02:11]}  Rfd8 {[%clk 0:02:06]} 24. b4 {[%clk 0:01:58]}  Nd3 {[%clk 0:02:06]} 25. Rc4 {[%clk 0:01:49]}  Nxf4 {[%clk 0:01:59]} 26. Rxe4 {[%clk 0:01:49]}  Ne2+ {[%clk 0:01:44]} 27. Kh2 {[%clk 0:01:47]}  Rd1 {[%clk 0:01:44]} 28. Rxd1 {[%clk 0:01:45]}  Rxd1 {[%clk 0:01:45]} 29. Qxa7 {[%clk 0:01:36]}  Qd5 {[%clk 0:01:38]} 30. Re8+ {[%clk 0:01:24]}  Kh7 {[%clk 0:01:38]} 31. Qxb6 {[%clk 0:01:23]}  Rh1+ {[%clk 0:01:36]} 32. Kxh1 {[%clk 0:01:18]}  Qd1+ {[%clk 0:01:36]} 33. Kh2 {[%clk 0:01:19]}  Qd6+ {[%clk 0:01:30]} 34. Qxd6 {[%clk 0:01:18]} 1-0


[Site "https://www.chess.com"]

[Event "Titled Tuesday Blitz July 18 Early 2023"]
[White "Zhang, Eric"]
[Black "Rom, Jasper"]
[WhiteFideId "30907667"]
[BlackFideId "2023733"]
[WhiteElo "2544"]
[BlackElo "2413"]
[Result "1-0"]
[Round "9"]
[TimeControl "180+2"]
[Date "2023.07.18"]
[WhiteClock "0:00:35"]
[BlackClock "0:00:00"]
[Board "106"]

1. d4 {[%clk 0:03:00]}  d5 {[%clk 0:02:57]} 2. c4 {[%clk 0:03:00]}  e6 {[%clk 0:02:56]} 3. Nc3 {[%clk 0:03:00]}  c6 {[%clk 0:02:57]} 4. Nf3 {[%clk 0:02:58]}  dxc4 {[%clk 0:02:56]} 5. a4 {[%clk 0:02:57]}  Bb4 {[%clk 0:02:55]} 6. e3 {[%clk 0:02:56]}  b5 {[%clk 0:02:55]} 7. Qc2 {[%clk 0:02:48]}  a6 {[%clk 0:02:49]} 8. Be2 {[%clk 0:02:47]}  Bb7 {[%clk 0:02:49]} 9. O-O {[%clk 0:02:47]}  Nf6 {[%clk 0:02:49]} 10. Ne5 {[%clk 0:02:46]}  Nbd7 {[%clk 0:02:48]} 11. f4 {[%clk 0:02:45]}  O-O {[%clk 0:02:46]} 12. Bf3 {[%clk 0:02:43]}  Qb6 {[%clk 0:02:41]} 13. Ne4 {[%clk 0:02:37]}  c5 {[%clk 0:02:29]} 14. Ng5 {[%clk 0:02:16]}  Rad8 {[%clk 0:01:56]} 15. Bxb7 {[%clk 0:01:49]}  Qxb7 {[%clk 0:01:55]} 16. f5 {[%clk 0:01:50]}  exf5 {[%clk 0:01:02]} 17. Rxf5 {[%clk 0:01:36]}  h6 {[%clk 0:01:02]} 18. Ngf3 {[%clk 0:00:56]}  Qe4 {[%clk 0:00:42]} 19. Qxe4 {[%clk 0:00:55]}  Nxe4 {[%clk 0:00:42]} 20. axb5 {[%clk 0:00:46]}  Nxe5 {[%clk 0:00:35]} 21. Rxe5 {[%clk 0:00:44]}  Rfe8 {[%clk 0:00:11]} 22. bxa6 {[%clk 0:00:44]}  Rxe5 {[%clk 0:00:09]} 23. Nxe5 {[%clk 0:00:45]}  Ra8 {[%clk 0:00:04]} 24. Nxc4 {[%clk 0:00:36]}  cxd4 {[%clk 0:00:00]} 25. exd4 {[%clk 0:00:35]} 1-0


[Site "https://www.chess.com"]

[Event "Titled Tuesday Blitz July 18 Early 2023"]
[White "Arencibia Monduy, Antonio"]
[Black "Hoffmann, Asa"]
[WhiteFideId "3507939"]
[BlackFideId "2001470"]
[WhiteElo "2539"]
[BlackElo "2396"]
[Result "1-0"]
[Round "9"]
[TimeControl "180+2"]
[Date "2023.07.18"]
[WhiteClock "0:00:02"]
[BlackClock "0:00:41"]
[Board "107"]

1. e4 {[%clk 0:03:00]}  d6 {[%clk 0:02:58]} 2. d4 {[%clk 0:03:00]}  Nf6 {[%clk 0:02:54]} 3. Nc3 {[%clk 0:02:59]}  c6 {[%clk 0:02:54]} 4. Nf3 {[%clk 0:02:58]}  Bg4 {[%clk 0:02:53]} 5. h3 {[%clk 0:02:58]}  Bh5 {[%clk 0:02:52]} 6. Be2 {[%clk 0:02:53]}  e6 {[%clk 0:02:52]} 7. O-O {[%clk 0:02:53]}  d5 {[%clk 0:02:52]} 8. e5 {[%clk 0:02:52]}  Nfd7 {[%clk 0:02:51]} 9. Nh2 {[%clk 0:02:47]}  Bg6 {[%clk 0:02:51]} 10. f4 {[%clk 0:02:47]}  c5 {[%clk 0:02:51]} 11. Be3 {[%clk 0:02:41]}  cxd4 {[%clk 0:02:50]} 12. Bxd4 {[%clk 0:02:42]}  Nc6 {[%clk 0:02:50]} 13. Bf2 {[%clk 0:02:41]}  a6 {[%clk 0:02:44]} 14. Kh1 {[%clk 0:02:41]}  h5 {[%clk 0:02:36]} 15. a3 {[%clk 0:02:38]}  Bc5 {[%clk 0:02:35]} 16. Bxc5 {[%clk 0:02:20]}  Nxc5 {[%clk 0:02:35]} 17. Nf3 {[%clk 0:02:10]}  d4 {[%clk 0:02:33]} 18. Nb1 {[%clk 0:02:00]}  Ne4 {[%clk 0:02:32]} 19. Kh2 {[%clk 0:01:55]}  h4 {[%clk 0:02:32]} 20. Bd3 {[%clk 0:01:52]}  Ng3 {[%clk 0:02:27]} 21. Re1 {[%clk 0:01:52]}  Bf5 {[%clk 0:02:21]} 22. Nbd2 {[%clk 0:01:48]}  Ne7 {[%clk 0:02:07]} 23. Nb3 {[%clk 0:01:42]}  Nc6 {[%clk 0:01:59]} 24. Qd2 {[%clk 0:01:38]}  Qd5 {[%clk 0:01:58]} 25. Rad1 {[%clk 0:01:36]}  O-O-O {[%clk 0:01:58]} 26. Bxf5 {[%clk 0:01:19]}  Nxf5 {[%clk 0:01:56]} 27. Qe2 {[%clk 0:01:03]}  Rd7 {[%clk 0:01:45]} 28. Rd3 {[%clk 0:01:02]}  Rhd8 {[%clk 0:01:45]} 29. Qf2 {[%clk 0:01:01]}  f6 {[%clk 0:01:37]} 30. exf6 {[%clk 0:00:54]}  gxf6 {[%clk 0:01:37]} 31. Nxh4 {[%clk 0:00:34]}  Nxh4 {[%clk 0:01:32]} 32. Qxh4 {[%clk 0:00:35]}  e5 {[%clk 0:01:32]} 33. fxe5 {[%clk 0:00:25]}  fxe5 {[%clk 0:01:32]} 34. Qe4 {[%clk 0:00:24]}  Qc4 {[%clk 0:01:28]} 35. Re2 {[%clk 0:00:19]}  Rg8 {[%clk 0:01:25]} 36. Nd2 {[%clk 0:00:13]}  Qxc2 {[%clk 0:01:19]} 37. Nf3 {[%clk 0:00:13]}  Qc4 {[%clk 0:01:14]} 38. b3 {[%clk 0:00:11]}  Qc5 {[%clk 0:01:07]} 39. Nxe5 {[%clk 0:00:10]}  Nxe5 {[%clk 0:00:58]} 40. Qxe5 {[%clk 0:00:10]}  Qxa3 {[%clk 0:00:53]} 41. Rc2+ {[%clk 0:00:08]}  Kd8 {[%clk 0:00:52]} 42. Qf6+ {[%clk 0:00:05]}  Qe7 {[%clk 0:00:51]} 43. Qb6+ {[%clk 0:00:05]}  Ke8 {[%clk 0:00:50]} 44. Rc8+ {[%clk 0:00:05]}  Rd8 {[%clk 0:00:45]} 45. Rxd8+ {[%clk 0:00:05]}  Qxd8 {[%clk 0:00:45]} 46. Qe6+ {[%clk 0:00:04]}  Kf8 {[%clk 0:00:44]} 47. Rf3+ {[%clk 0:00:01]}  Kg7 {[%clk 0:00:44]} 48. Rg3+ {[%clk 0:00:02]}  Kh7 {[%clk 0:00:42]} 49. Qf7+ {[%clk 0:00:02]}  Kh8 {[%clk 0:00:41]} 50. Qh5# {[%clk 0:00:02]} 1-0


[Site "https://www.chess.com"]

[Event "Titled Tuesday Blitz July 18 Early 2023"]
[White "Rangel, Daniel"]
[Black "Zaim, Marian"]
[WhiteFideId "2124475"]
[BlackFideId "1204114"]
[WhiteElo "2515"]
[BlackElo "2325"]
[Result "0-1"]
[Round "9"]
[TimeControl "180+2"]
[Date "2023.07.18"]
[WhiteClock "0:00:09"]
[BlackClock "0:00:19"]
[Board "109"]

1. c4 {[%clk 0:03:00]}  b6 {[%clk 0:02:56]} 2. d4 {[%clk 0:03:00]}  Bb7 {[%clk 0:02:55]} 3. Nc3 {[%clk 0:03:01]}  f5 {[%clk 0:02:53]} 4. Bf4 {[%clk 0:02:57]}  e6 {[%clk 0:02:51]} 5. e3 {[%clk 0:02:57]}  Nf6 {[%clk 0:02:51]} 6. Nf3 {[%clk 0:02:56]}  Be7 {[%clk 0:02:47]} 7. h3 {[%clk 0:02:56]}  O-O {[%clk 0:02:46]} 8. Qc2 {[%clk 0:02:52]}  d6 {[%clk 0:02:42]} 9. Bd3 {[%clk 0:02:50]}  h6 {[%clk 0:02:28]} 10. Rg1 {[%clk 0:02:45]}  c5 {[%clk 0:02:00]} 11. Bh2 {[%clk 0:02:23]}  Nbd7 {[%clk 0:01:55]} 12. d5 {[%clk 0:02:21]}  exd5 {[%clk 0:01:51]} 13. Bxf5 {[%clk 0:02:21]}  dxc4 {[%clk 0:01:48]} 14. Be6+ {[%clk 0:02:20]}  Kh8 {[%clk 0:01:47]} 15. Nh4 {[%clk 0:02:17]}  g5 {[%clk 0:01:19]} 16. Ng6+ {[%clk 0:02:15]}  Kg7 {[%clk 0:01:19]} 17. Nxe7 {[%clk 0:02:12]}  Qxe7 {[%clk 0:01:18]} 18. Bf5 {[%clk 0:01:52]}  d5 {[%clk 0:01:14]} 19. O-O-O {[%clk 0:01:46]}  Ne5 {[%clk 0:01:08]} 20. Bxe5 {[%clk 0:01:40]}  Qxe5 {[%clk 0:01:08]} 21. g4 {[%clk 0:01:10]}  d4 {[%clk 0:01:07]} 22. exd4 {[%clk 0:00:55]}  cxd4 {[%clk 0:01:06]} 23. Nb1 {[%clk 0:00:56]}  Qf4+ {[%clk 0:01:00]} 24. Qd2 {[%clk 0:00:53]}  Qxd2+ {[%clk 0:00:49]} 25. Nxd2 {[%clk 0:00:47]}  b5 {[%clk 0:00:50]} 26. Rde1 {[%clk 0:00:46]}  Rfe8 {[%clk 0:00:49]} 27. Nb1 {[%clk 0:00:39]}  Rxe1+ {[%clk 0:00:46]} 28. Rxe1 {[%clk 0:00:38]}  Re8 {[%clk 0:00:46]} 29. Rxe8 {[%clk 0:00:37]}  Nxe8 {[%clk 0:00:46]} 30. Na3 {[%clk 0:00:36]}  a6 {[%clk 0:00:46]} 31. Nc2 {[%clk 0:00:33]}  d3 {[%clk 0:00:45]} 32. Nd4 {[%clk 0:00:32]}  Nd6 {[%clk 0:00:43]} 33. Bd7 {[%clk 0:00:24]}  Kf6 {[%clk 0:00:40]} 34. Kd2 {[%clk 0:00:22]}  Bg2 {[%clk 0:00:36]} 35. b3 {[%clk 0:00:14]}  Bxh3 {[%clk 0:00:34]} 36. Nc6 {[%clk 0:00:13]}  Ne4+ {[%clk 0:00:31]} 37. Ke3 {[%clk 0:00:13]}  d2 {[%clk 0:00:31]} 38. Ke2 {[%clk 0:00:13]}  c3 {[%clk 0:00:32]} 39. Nd4 {[%clk 0:00:12]}  b4 {[%clk 0:00:31]} 40. f3 {[%clk 0:00:11]}  Ng3+ {[%clk 0:00:29]} 41. Kd1 {[%clk 0:00:11]}  Bf1 {[%clk 0:00:28]} 42. Bc8 {[%clk 0:00:11]}  a5 {[%clk 0:00:28]} 43. Bf5 {[%clk 0:00:11]}  Nxf5 {[%clk 0:00:28]} 44. Nxf5 {[%clk 0:00:11]}  Bd3 {[%clk 0:00:27]} 45. Ne3 {[%clk 0:00:11]}  Bb1 {[%clk 0:00:25]} 46. a4 {[%clk 0:00:08]}  bxa3 {[%clk 0:00:23]} 47. Nd5+ {[%clk 0:00:08]}  Ke5 {[%clk 0:00:21]} 48. Nxc3 {[%clk 0:00:09]}  a2 {[%clk 0:00:20]} 49. Kxd2 {[%clk 0:00:09]}  a1=Q {[%clk 0:00:19]} 50. Ke3 {[%clk 0:00:09]}  Qxc3+ {[%clk 0:00:19]} 0-1


[Site "https://www.chess.com"]

[Event "Titled Tuesday Blitz July 18 Early 2023"]
[White "Thiel, Thomas"]
[Black "MateoReyes"]
[WhiteFideId "4615964"]
[WhiteElo "2257"]
[BlackElo "2492"]
[Result "0-1"]
[Round "9"]
[TimeControl "180+2"]
[Date "2023.07.18"]
[WhiteClock "0:01:21"]
[BlackClock "0:02:08"]
[Board "113"]

1. e4 {[%clk 0:03:00]}  c5 {[%clk 0:02:59]} 2. Nc3 {[%clk 0:03:00]}  Nc6 {[%clk 0:02:58]} 3. Bb5 {[%clk 0:02:59]}  Nd4 {[%clk 0:02:58]} 4. Bc4 {[%clk 0:02:58]}  e6 {[%clk 0:02:57]} 5. Nge2 {[%clk 0:02:58]}  Nc6 {[%clk 0:02:56]} 6. O-O {[%clk 0:02:56]}  d6 {[%clk 0:02:55]} 7. d4 {[%clk 0:02:54]}  cxd4 {[%clk 0:02:55]} 8. Nxd4 {[%clk 0:02:55]}  Nf6 {[%clk 0:02:55]} 9. Bg5 {[%clk 0:02:49]}  Be7 {[%clk 0:02:55]} 10. Ndb5 {[%clk 0:02:48]}  a6 {[%clk 0:02:54]} 11. Bxf6 {[%clk 0:02:45]}  gxf6 {[%clk 0:02:53]} 12. Nd4 {[%clk 0:02:43]}  Qc7 {[%clk 0:02:51]} 13. Bb3 {[%clk 0:02:38]}  Bd7 {[%clk 0:02:50]} 14. Re1 {[%clk 0:02:35]}  O-O-O {[%clk 0:02:48]} 15. Nxc6 {[%clk 0:02:34]}  Bxc6 {[%clk 0:02:47]} 16. Nd5 {[%clk 0:02:26]}  exd5 {[%clk 0:02:34]} 17. exd5 {[%clk 0:02:20]}  Be8 {[%clk 0:02:30]} 18. c4 {[%clk 0:02:09]}  Kb8 {[%clk 0:02:28]} 19. Rc1 {[%clk 0:02:07]}  Bf8 {[%clk 0:02:25]} 20. Qd4 {[%clk 0:02:03]}  Bg7 {[%clk 0:02:17]} 21. c5 {[%clk 0:01:52]}  dxc5 {[%clk 0:02:16]} 22. Rxc5 {[%clk 0:01:53]}  Qd6 {[%clk 0:02:14]} 23. Rec1 {[%clk 0:01:50]}  Bd7 {[%clk 0:02:09]} 24. Rc7 {[%clk 0:01:21]}  Rc8 {[%clk 0:02:08]} 0-1


[Site "https://www.chess.com"]

[Event "Titled Tuesday Blitz July 18 Early 2023"]
[White "UgarteCesar"]
[Black "Chitlange Sakshi"]
[BlackFideId "35002899"]
[WhiteElo "2208"]
[BlackElo "2443"]
[Result "0-1"]
[Round "9"]
[TimeControl "180+2"]
[Date "2023.07.18"]
[WhiteClock "0:00:37"]
[BlackClock "0:01:21"]
[Board "114"]

1. d4 {[%clk 0:03:00]}  Nf6 {[%clk 0:02:55]} 2. Bg5 {[%clk 0:03:00]}  Ne4 {[%clk 0:02:54]} 3. Bf4 {[%clk 0:03:00]}  d5 {[%clk 0:02:54]} 4. Nd2 {[%clk 0:03:00]}  Bf5 {[%clk 0:02:53]} 5. f3 {[%clk 0:03:00]}  Nxd2 {[%clk 0:02:53]} 6. Qxd2 {[%clk 0:03:01]}  e6 {[%clk 0:02:53]} 7. e3 {[%clk 0:03:02]}  Bd6 {[%clk 0:02:53]} 8. Bxd6 {[%clk 0:03:01]}  cxd6 {[%clk 0:02:54]} 9. Bd3 {[%clk 0:03:00]}  Bxd3 {[%clk 0:02:54]} 10. Qxd3 {[%clk 0:03:00]}  Nc6 {[%clk 0:02:54]} 11. a3 {[%clk 0:03:00]}  Qb6 {[%clk 0:02:53]} 12. b3 {[%clk 0:02:40]}  Rc8 {[%clk 0:02:51]} 13. Ne2 {[%clk 0:02:40]}  Qa5+ {[%clk 0:02:50]} 14. Qd2 {[%clk 0:02:37]}  Qa6 {[%clk 0:02:48]} 15. O-O {[%clk 0:02:33]}  O-O {[%clk 0:02:47]} 16. Rfc1 {[%clk 0:02:27]}  Ne7 {[%clk 0:02:46]} 17. Qd3 {[%clk 0:02:23]}  Qb6 {[%clk 0:02:44]} 18. c4 {[%clk 0:02:19]}  dxc4 {[%clk 0:02:45]} 19. bxc4 {[%clk 0:02:19]}  e5 {[%clk 0:02:39]} 20. Rab1 {[%clk 0:02:18]}  Qc7 {[%clk 0:02:39]} 21. Qb3 {[%clk 0:02:15]}  b6 {[%clk 0:02:37]} 22. a4 {[%clk 0:02:14]}  exd4 {[%clk 0:02:35]} 23. exd4 {[%clk 0:02:14]}  Nc6 {[%clk 0:02:35]} 24. c5 {[%clk 0:01:56]}  Rfe8 {[%clk 0:02:28]} 25. Rc2 {[%clk 0:01:55]}  Rxe2 {[%clk 0:02:15]} 26. Rxe2 {[%clk 0:01:54]}  Nxd4 {[%clk 0:02:14]} 27. cxb6 {[%clk 0:01:24]}  axb6 {[%clk 0:01:52]} 28. Qd3 {[%clk 0:01:12]}  Nxe2+ {[%clk 0:01:38]} 29. Qxe2 {[%clk 0:01:13]}  Qc5+ {[%clk 0:01:38]} 30. Kf1 {[%clk 0:01:01]}  h6 {[%clk 0:01:34]} 31. g3 {[%clk 0:01:02]}  Qf5 {[%clk 0:01:28]} 32. Rb5 {[%clk 0:00:37]}  Qh3+ {[%clk 0:01:21]} 0-1


[Site "https://www.chess.com"]

[Event "Titled Tuesday Blitz July 18 Early 2023"]
[White "Zacurdajev, Dmitry"]
[Black "LLariMarc"]
[WhiteFideId "4196309"]
[WhiteElo "2439"]
[BlackElo "2199"]
[Result "0-1"]
[Round "9"]
[TimeControl "180+2"]
[Date "2023.07.18"]
[WhiteClock "0:00:01"]
[BlackClock "0:01:19"]
[Board "115"]

1. d4 {[%clk 0:02:56]}  g6 {[%clk 0:02:48]} 2. c4 {[%clk 0:02:55]}  Bg7 {[%clk 0:02:48]} 3. Nc3 {[%clk 0:02:56]}  c5 {[%clk 0:02:48]} 4. e3 {[%clk 0:02:53]}  Nf6 {[%clk 0:02:45]} 5. Nf3 {[%clk 0:02:50]}  O-O {[%clk 0:02:44]} 6. Be2 {[%clk 0:02:50]}  Nc6 {[%clk 0:02:43]} 7. d5 {[%clk 0:02:36]}  Na5 {[%clk 0:02:42]} 8. e4 {[%clk 0:02:20]}  d6 {[%clk 0:02:41]} 9. h3 {[%clk 0:02:16]}  a6 {[%clk 0:02:41]} 10. O-O {[%clk 0:02:12]}  Rb8 {[%clk 0:02:38]} 11. a4 {[%clk 0:02:10]}  b5 {[%clk 0:02:32]} 12. axb5 {[%clk 0:02:10]}  axb5 {[%clk 0:02:31]} 13. cxb5 {[%clk 0:02:01]}  c4 {[%clk 0:02:29]} 14. Nd4 {[%clk 0:01:58]}  e5 {[%clk 0:02:26]} 15. Nc6 {[%clk 0:01:55]}  Nxc6 {[%clk 0:02:25]} 16. bxc6 {[%clk 0:01:44]}  Rb4 {[%clk 0:02:21]} 17. Ra4 {[%clk 0:01:41]}  Qb6 {[%clk 0:02:18]} 18. Bxc4 {[%clk 0:01:38]}  Rxa4 {[%clk 0:02:13]} 19. Qxa4 {[%clk 0:01:35]}  Nh5 {[%clk 0:02:08]} 20. b4 {[%clk 0:01:24]}  Nf4 {[%clk 0:02:06]} 21. Be3 {[%clk 0:01:23]}  Qd8 {[%clk 0:02:05]} 22. Ne2 {[%clk 0:01:03]}  Bxh3 {[%clk 0:01:45]} 23. Bxf4 {[%clk 0:00:59]}  exf4 {[%clk 0:01:38]} 24. gxh3 {[%clk 0:00:54]}  f3 {[%clk 0:01:38]} 25. Ng3 {[%clk 0:00:53]}  h5 {[%clk 0:01:38]} 26. Qd1 {[%clk 0:00:40]}  h4 {[%clk 0:01:37]} 27. Qxf3 {[%clk 0:00:40]}  hxg3 {[%clk 0:01:37]} 28. fxg3 {[%clk 0:00:35]}  Qb6+ {[%clk 0:01:36]} 29. Kh1 {[%clk 0:00:30]}  Qxb4 {[%clk 0:01:37]} 30. Bd3 {[%clk 0:00:19]}  Be5 {[%clk 0:01:35]} 31. Qe2 {[%clk 0:00:18]}  Bxg3 {[%clk 0:01:35]} 32. Qc2 {[%clk 0:00:18]}  Be5 {[%clk 0:01:34]} 33. c7 {[%clk 0:00:18]}  Rb8 {[%clk 0:01:33]} 34. c8=Q+ {[%clk 0:00:15]}  Rxc8 {[%clk 0:01:33]} 35. Qxc8+ {[%clk 0:00:16]}  Kg7 {[%clk 0:01:32]} 36. Qd7 {[%clk 0:00:14]}  Qd2 {[%clk 0:01:31]} 37. Qxf7+ {[%clk 0:00:09]}  Kh6 {[%clk 0:01:32]} 38. Qf8+ {[%clk 0:00:09]}  Kg5 {[%clk 0:01:26]} 39. Rg1+ {[%clk 0:00:05]}  Kh4 {[%clk 0:01:19]} 40. Qh8+ {[%clk 0:00:01]}  Bxh8 {[%clk 0:01:19]} 0-1


[Site "https://www.chess.com"]